fUSD/lending_fUSD_20260601
["ID","MTS","AMOUNT","RATE_DAILY","PERIOD"]
[423638908,1780271431000,-204.844,7.709e-05,2]
[423638906,1780271431000,-150.0,7.707e-05,2]
[423638904,1780271431000,-9999.99,7.702e-05,2]
[423638905,1780271431000,-2430.89,7.703e-05,2]
[423638907,1780271431000,-2588.41,7.709e-05,2]
[423638909,1780271431000,-1000.0,7.709e-05,2]
[423638911,1780271431000,-2430.89,7.746e-05,2]
[423638916,1780271431000,-14100.0,7.8e-05,2]
[423638939,1780271437000,-2430.89,8.083e-05,2]
[423638932,1780271437000,-526.10988227,7.903e-05,2]
[423638934,1780271437000,-2430.89,7.914e-05,2]
[423638933,1780271437000,-1958578.01703339,7.903e-05,2]
[423638940,1780271437000,-2430.89,8.126e-05,2]
[423638935,1780271437000,-2430.89,7.957e-05,2]
[423638936,1780271437000,-2430.89,7.999e-05,2]
[423638938,1780271437000,-2430.89,8.041e-05,2]
[423638937,1780271437000,-28300.0,8e-05,2]
[423638943,1780271437000,-2430.89,8.21e-05,2]
[423638942,1780271437000,-1144.316888,8.178e-05,2]
[423638945,1780271437000,-500.0,8.219e-05,2]
[423638944,1780271437000,-500.0,8.219e-05,2]
[423638947,1780271437000,-500.0,8.219e-05,2]
[423638946,1780271437000,-500.0,8.219e-05,2]
[423638948,1780271437000,-247.2262405,8.219e-05,2]
[423638949,1780271437000,-450.0,8.219e-05,2]
[423638941,1780271437000,-2430.89,8.168e-05,2]
[423639013,1780271438000,-191.2,0.00010046,2]
[423639009,1780271438000,-1064.58983183,0.0001,2]
[423639011,1780271438000,-4000.0,0.00010027,2]
[423638994,1780271438000,-9778.57841304,9.325e-05,2]
[423638996,1780271438000,-1454.66,9.368e-05,2]
[423639007,1780271438000,-821.87272388,0.0001,2]
[423639003,1780271438000,-500.0,9.863e-05,2]
[423638990,1780271438000,-500.0,9.315e-05,2]
[423638988,1780271438000,-33237.5546,9.302e-05,2]
[423639015,1780271438000,-250.0,0.00010094,2]
[423638998,1780271438000,-192.0,9.407e-05,2]
[423639005,1780271438000,-163.57,0.0001,2]
[423638986,1780271438000,-2000.0,9.247e-05,2]
[423638992,1780271438000,-433.0,9.325e-05,2]
[423639017,1780271438000,-823.0,0.00010128,2]
[423639028,1780271438000,-500.0,0.00010411,2]
[423639020,1780271438000,-500.0,0.00010137,2]
[423639027,1780271438000,-4000.0,0.00010278,2]
[423639024,1780271438000,-192.0,0.00010262,2]
[423639022,1780271438000,-736.0,0.00010258,2]
[423639025,1780271438000,-2000.0,0.00010274,2]
[423639029,1780271438000,-500.0,0.00010438,2]
[423639030,1780271438000,-500.0,0.00010438,2]
[423639031,1780271438000,-293.48963989,0.00010484,2]
[423639032,1780271438000,-717.61314637,0.00010484,2]
[423639034,1780271438000,-4000.0,0.00010529,2]
[423639033,1780271438000,-191.2,0.00010502,2]
[423639044,1780271438000,-500.0,0.00010958,6]
[423639036,1780271438000,-243.896559,0.00010564,2]
[423639001,1780271438000,-191.2,9.589e-05,2]
[423639019,1780271438000,-3292.0,0.00010128,2]
[423638999,1780271438000,-500.0,9.589e-05,2]
[423639087,1780271438000,-500.0,0.00011699,2]
[423638982,1780271438000,-2351.0,9.207e-05,2]
[423639038,1780271438000,-11714.72484022,0.000109,2]
[423638951,1780271438000,-500.0,8.219e-05,2]
[423638950,1780271438000,-600.0,8.219e-05,2]
[423638952,1780271438000,-431.4526251,8.219e-05,2]
[423638953,1780271438000,-191.2,8.219e-05,2]
[423638954,1780271438000,-2000.0,8.219e-05,2]
[423638956,1780271438000,-2430.89,8.252e-05,2]
[423638959,1780271438000,-160.51819613,8.306e-05,2]
[423638955,1780271438000,-500.0,8.219e-05,2]
[423638961,1780271438000,-250.0,8.306e-05,2]
[423638964,1780271438000,-907.0,8.37e-05,2]
[423638957,1780271438000,-2430.89,8.294e-05,2]
[423638963,1780271438000,-2430.89,8.337e-05,2]
[423638958,1780271438000,-500.0,8.306e-05,2]
[423638960,1780271438000,-250.0,8.306e-05,2]
[423638962,1780271438000,-250.0,8.306e-05,2]
[423638967,1780271438000,-2430.89,8.379e-05,2]
[423638980,1780271438000,-587.0,9.207e-05,2]
[423638977,1780271438000,-500.0,9.041e-05,2]
[423638974,1780271438000,-191.2,8.676e-05,2]
[423638976,1780271438000,-500.0,8.767e-05,2]
[423638975,1780271438000,-1000.0,8.688e-05,2]
[423638970,1780271438000,-211.36316008,8.478e-05,2]
[423638984,1780271438000,-2571.5318,9.217e-05,2]
[423638978,1780271438000,-191.2,9.132e-05,2]
[423638973,1780271438000,-192.0,8.552e-05,2]
[423638968,1780271438000,-2430.89,8.421e-05,2]
[423638971,1780271438000,-150.0,8.493e-05,2]
[423638969,1780271438000,-255.0,8.478e-05,2]
[423638965,1780271438000,-420.0,8.37e-05,2]
[423638966,1780271438000,-1680.0,8.37e-05,2]
[423638972,1780271438000,-500.0,8.493e-05,2]
[423639039,1780271438000,-11714.72484017,0.000109,2]
[423639102,1780271438000,-53239.53551037,0.0001249,2]
[423639037,1780271438000,-4000.0,0.00010779,2]
[423639075,1780271438000,-65152.56322967,0.00011099,2]
[423639076,1780271438000,-65152.56322967,0.00011099,2]
[423639077,1780271438000,-500.0,0.00011123,2]
[423639078,1780271438000,-1050.0,0.00011141,2]
[423639079,1780271438000,-4609.0,0.00011141,2]
[423639081,1780271438000,-2000.0,0.00011301,2]
[423639083,1780271438000,-191.2,0.00011416,2]
[423639080,1780271438000,-960.0,0.00011283,2]
[423639085,1780271438000,-65152.56322967,0.00011512,2]
[423639082,1780271438000,-821.87272387,0.00011351,2]
[423639084,1780271438000,-53239.53551037,0.00011451,2]
[423639086,1780271438000,-500.0,0.00011671,2]
[423639088,1780271438000,-1454.66,0.0001171,2]
[423639105,1780271438000,-2511.59,0.00013183,2]
[423639073,1780271438000,-65152.56322967,0.00011099,2]
[423639091,1780271438000,-53239.53551037,0.00011971,2]
[423639093,1780271438000,-40526.3,0.00012055,2]
[423639090,1780271438000,-191.2,0.00011872,2]
[423639092,1780271438000,-65152.56322967,0.00012,2]
[423639094,1780271438000,-293.48963989,0.00012057,2]
[423639096,1780271438000,-8608.81610317,0.000121,2]
[423639097,1780271438000,-6453.0,0.00012255,2]
[423639095,1780271438000,-717.61314637,0.00012057,2]
[423639098,1780271438000,-637.04079501,0.00012277,2]
[423639099,1780271438000,-176.81,0.00012329,2]
[423639100,1780271438000,-2000.0,0.00012329,2]
[423639104,1780271438000,-1454.66,0.00012881,2]
[423639106,1780271438000,-2000.0,0.00013308,2]
[423639103,1780271438000,-500.0,0.00012575,2]
[423639035,1780271438000,-1454.66,0.00010539,2]
[423639089,1780271438000,-171.0,0.00011872,2]
[423639074,1780271438000,-65152.56322967,0.00011099,2]
[423639101,1780271438000,-191.2,0.00012329,2]
[423639071,1780271438000,-65152.56322967,0.00011099,2]
[423639070,1780271438000,-65152.56322967,0.00011099,2]
[423639041,1780271438000,-500.0,0.00010958,3]
[423639043,1780271438000,-500.0,0.00010958,5]
[423639042,1780271438000,-500.0,0.00010958,4]
[423639046,1780271438000,-500.0,0.00010958,8]
[423639045,1780271438000,-500.0,0.00010958,7]
[423639048,1780271438000,-500.0,0.00010958,10]
[423639047,1780271438000,-500.0,0.00010958,9]
[423639058,1780271438000,-191.2,0.00010959,2]
[423639049,1780271438000,-500.0,0.00010958,11]
[423639050,1780271438000,-500.0,0.00010958,12]
[423639051,1780271438000,-500.0,0.00010958,13]
[423639052,1780271438000,-500.0,0.00010958,14]
[423639054,1780271438000,-500.0,0.00010958,16]
[423639053,1780271438000,-500.0,0.00010958,15]
[423639040,1780271438000,-500.0,0.00010958,2]
[423639057,1780271438000,-150.0,0.00010959,2]
[423639055,1780271438000,-150.0,0.00010959,2]
[423639067,1780271438000,-53239.53551037,0.00011099,2]
[423639065,1780271438000,-53239.53551037,0.00011099,2]
[423639069,1780271438000,-65152.56322967,0.00011099,2]
[423639064,1780271438000,-53239.53551037,0.00011099,2]
[423639063,1780271438000,-53239.53551037,0.00011099,2]
[423639068,1780271438000,-53239.53551037,0.00011099,2]
[423639062,1780271438000,-53239.53551046,0.00011099,2]
[423639056,1780271438000,-4547.83,0.00010959,2]
[423639072,1780271438000,-65152.56322967,0.00011099,2]
[423639059,1780271438000,-169.98,0.00011,2]
[423639066,1780271438000,-53239.53551037,0.00011099,2]
[423639060,1780271438000,-4000.0,0.0001103,2]
[423639061,1780271438000,-1064.58983183,0.00011089,2]
[423639151,1780271439000,-150.0,0.00013645,2]
[423639139,1780271439000,-150.0,0.00013488,2]
[423639141,1780271439000,-150.0,0.00013516,2]
[423639134,1780271439000,-150.0,0.00013488,2]
[423639142,1780271439000,-11714.72484017,0.00013537,2]
[423639144,1780271439000,-150.0,0.00013567,2]
[423639143,1780271439000,-150.0,0.00013545,2]
[423639147,1780271439000,-150.0,0.00013581,2]
[423639145,1780271439000,-150.0,0.00013574,2]
[423639148,1780271439000,-150.0,0.00013603,2]
[423639146,1780271439000,-150.0,0.00013576,2]
[423639136,1780271439000,-150.0,0.00013488,2]
[423639138,1780271439000,-150.0,0.00013488,2]
[423639154,1780271439000,-150.0,0.00013675,2]
[423639150,1780271439000,-150.0,0.00013632,2]
[423639153,1780271439000,-150.0,0.00013664,2]
[423639152,1780271439000,-150.0,0.00013661,2]
[423639155,1780271439000,-150.0,0.00013675,2]
[423639156,1780271439000,-150.0,0.00013689,2]
[423639161,1780271439000,-500.0,0.00013698,2]
[423639158,1780271439000,-7445.94946026,0.00013698,2]
[423639164,1780271439000,-321.46293792,0.00013698,2]
[423639160,1780271439000,-500.0,0.00013698,2]
[423639166,1780271439000,-500.0,0.00013698,2]
[423639140,1780271439000,-500.0,0.00013507,2]
[423639157,1780271439000,-4891.81240197,0.00013698,2]
[423639149,1780271439000,-150.0,0.00013624,2]
[423639137,1780271439000,-150.0,0.00013488,2]
[423639120,1780271439000,-2000.0,0.00013308,2]
[423639133,1780271439000,-150.0,0.00013488,2]
[423639163,1780271439000,-500.0,0.00013698,2]
[423639107,1780271439000,-2000.0,0.00013308,2]
[423639108,1780271439000,-2000.0,0.00013308,2]
[423639110,1780271439000,-2000.0,0.00013308,2]
[423639109,1780271439000,-2000.0,0.00013308,2]
[423639112,1780271439000,-2000.0,0.00013308,2]
[423639111,1780271439000,-2000.0,0.00013308,2]
[423639113,1780271439000,-2000.0,0.00013308,2]
[423639116,1780271439000,-2000.0,0.00013308,2]
[423639115,1780271439000,-2000.0,0.00013308,2]
[423639118,1780271439000,-2000.0,0.00013308,2]
[423639117,1780271439000,-2000.0,0.00013308,2]
[423639135,1780271439000,-150.0,0.00013488,2]
[423639114,1780271439000,-2000.0,0.00013308,2]
[423639123,1780271439000,-2000.0,0.00013314,2]
[423639119,1780271439000,-2000.0,0.00013308,2]
[423639121,1780271439000,-1121.8,0.00013308,2]
[423639124,1780271439000,-2000.0,0.00013314,2]
[423639126,1780271439000,-236.12847992,0.00013343,2]
[423639125,1780271439000,-2000.0,0.00013314,2]
[423639127,1780271439000,-500.0,0.0001337,2]
[423639129,1780271439000,-150.0,0.00013488,2]
[423639130,1780271439000,-150.0,0.00013488,2]
[423639128,1780271439000,-7063.0,0.0001348,2]
[423639131,1780271439000,-150.0,0.00013488,2]
[423639132,1780271439000,-150.0,0.00013488,2]
[423639122,1780271439000,-2000.0,0.00013314,2]
[423639159,1780271439000,-500.0,0.00013698,2]
[423639169,1780271439000,-500.0,0.00013698,2]
[423639165,1780271439000,-500.0,0.00013698,2]
[423639200,1780271439000,-500.0,0.00013698,2]
[423639199,1780271439000,-500.0,0.00013698,2]
[423639204,1780271439000,-216.73250781,0.00013698,2]
[423639201,1780271439000,-500.0,0.00013698,2]
[423639203,1780271439000,-500.0,0.00013698,2]
[423639202,1780271439000,-500.0,0.00013698,2]
[423639206,1780271439000,-500.0,0.00013698,2]
[423639205,1780271439000,-500.0,0.00013698,2]
[423639208,1780271439000,-500.0,0.00013698,2]
[423639207,1780271439000,-500.0,0.00013698,2]
[423639210,1780271439000,-500.0,0.00013698,2]
[423639211,1780271439000,-500.0,0.00013698,2]
[423639209,1780271439000,-436.21958605,0.00013698,2]
[423639212,1780271439000,-500.0,0.00013698,2]
[423639216,1780271439000,-500.0,0.00013698,2]
[423639214,1780271439000,-500.0,0.00013698,2]
[423639215,1780271439000,-500.0,0.00013698,2]
[423639217,1780271439000,-500.0,0.00013698,2]
[423639213,1780271439000,-500.0,0.00013698,2]
[423639218,1780271439000,-500.0,0.00013698,2]
[423639220,1780271439000,-500.0,0.00013698,2]
[423639219,1780271439000,-500.0,0.00013698,2]
[423639222,1780271439000,-500.0,0.00013698,2]
[423639162,1780271439000,-500.0,0.00013698,2]
[423639225,1780271439000,-500.0,0.00013698,2]
[423639223,1780271439000,-500.0,0.00013698,2]
[423639224,1780271439000,-500.0,0.00013698,2]
[423639197,1780271439000,-500.0,0.00013698,2]
[423639198,1780271439000,-500.0,0.00013698,2]
[423639221,1780271439000,-500.0,0.00013698,2]
[423639195,1780271439000,-500.0,0.00013698,2]
[423639167,1780271439000,-500.0,0.00013698,2]
[423639196,1780271439000,-500.0,0.00013698,2]
[423639170,1780271439000,-500.0,0.00013698,2]
[423639180,1780271439000,-500.0,0.00013698,2]
[423639171,1780271439000,-500.0,0.00013698,2]
[423639173,1780271439000,-500.0,0.00013698,2]
[423639175,1780271439000,-500.0,0.00013698,2]
[423639174,1780271439000,-500.0,0.00013698,2]
[423639176,1780271439000,-500.0,0.00013698,2]
[423639178,1780271439000,-500.0,0.00013698,2]
[423639179,1780271439000,-500.0,0.00013698,2]
[423639177,1780271439000,-161.8469673,0.00013698,2]
[423639181,1780271439000,-500.0,0.00013698,2]
[423639168,1780271439000,-500.0,0.00013698,2]
[423639183,1780271439000,-500.0,0.00013698,2]
[423639184,1780271439000,-500.0,0.00013698,2]
[423639193,1780271439000,-500.0,0.00013698,2]
[423639186,1780271439000,-500.0,0.00013698,2]
[423639185,1780271439000,-500.0,0.00013698,2]
[423639189,1780271439000,-500.0,0.00013698,2]
[423639190,1780271439000,-500.0,0.00013698,2]
[423639188,1780271439000,-501.20372086,0.00013698,2]
[423639187,1780271439000,-500.0,0.00013698,2]
[423639191,1780271439000,-500.0,0.00013698,2]
[423639192,1780271439000,-500.0,0.00013698,2]
[423639182,1780271439000,-500.0,0.00013698,2]
[423639194,1780271439000,-500.0,0.00013698,2]
[423639261,1780271440000,-500.0,0.00013698,2]
[423639263,1780271440000,-500.0,0.00013698,2]
[423639259,1780271440000,-500.0,0.00013698,2]
[423639255,1780271440000,-500.0,0.00013698,2]
[423639268,1780271440000,-500.0,0.00013698,2]
[423639258,1780271440000,-500.0,0.00013698,2]
[423639256,1780271440000,-500.0,0.00013698,2]
[423639252,1780271440000,-500.0,0.00013698,2]
[423639257,1780271440000,-207.9347959,0.00013698,2]
[423639260,1780271440000,-500.0,0.00013698,2]
[423639269,1780271440000,-500.0,0.00013698,2]
[423639265,1780271440000,-500.0,0.00013698,2]
[423639267,1780271440000,-500.0,0.00013698,2]
[423639266,1780271440000,-500.0,0.00013698,2]
[423639264,1780271440000,-500.0,0.00013698,2]
[423639270,1780271440000,-500.0,0.00013698,2]
[423639271,1780271440000,-500.0,0.00013698,2]
[423639275,1780271440000,-500.0,0.00013698,2]
[423639278,1780271440000,-500.0,0.00013698,2]
[423639273,1780271440000,-500.0,0.00013698,2]
[423639274,1780271440000,-500.0,0.00013698,2]
[423639253,1780271440000,-500.0,0.00013698,2]
[423639272,1780271440000,-500.0,0.00013698,2]
[423639262,1780271440000,-500.0,0.00013698,2]
[423639251,1780271440000,-500.0,0.00013698,2]
[423639241,1780271440000,-500.0,0.00013698,2]
[423639254,1780271440000,-500.0,0.00013698,2]
[423639279,1780271440000,-500.0,0.00013698,2]
[423639228,1780271440000,-500.0,0.00013698,2]
[423639229,1780271440000,-500.0,0.00013698,2]
[423639227,1780271440000,-186.64364503,0.00013698,2]
[423639230,1780271440000,-500.0,0.00013698,2]
[423639231,1780271440000,-500.0,0.00013698,2]
[423639226,1780271440000,-500.0,0.00013698,2]
[423639232,1780271440000,-500.0,0.00013698,2]
[423639234,1780271440000,-500.0,0.00013698,2]
[423639238,1780271440000,-500.0,0.00013698,2]
[423639242,1780271440000,-500.0,0.00013698,2]
[423639249,1780271440000,-500.0,0.00013698,2]
[423639240,1780271440000,-500.0,0.00013698,2]
[423639235,1780271440000,-500.0,0.00013698,2]
[423639237,1780271440000,-500.0,0.00013698,2]
[423639233,1780271440000,-500.0,0.00013698,2]
[423639239,1780271440000,-500.0,0.00013698,2]
[423639244,1780271440000,-500.0,0.00013698,2]
[423639243,1780271440000,-500.0,0.00013698,2]
[423639245,1780271440000,-500.0,0.00013698,2]
[423639246,1780271440000,-500.0,0.00013698,2]
[423639247,1780271440000,-500.0,0.00013698,2]
[423639250,1780271440000,-500.0,0.00013698,2]
[423639248,1780271440000,-500.0,0.00013698,2]
[423639236,1780271440000,-500.0,0.00013698,2]
[423639277,1780271440000,-500.0,0.00013698,2]
[423639310,1780271440000,-500.0,0.00013698,2]
[423639280,1780271440000,-500.0,0.00013698,2]
[423639314,1780271440000,-500.0,0.00013698,2]
[423639315,1780271440000,-500.0,0.00013698,2]
[423639313,1780271440000,-500.0,0.00013698,2]
[423639312,1780271440000,-500.0,0.00013698,2]
[423639311,1780271440000,-500.0,0.00013698,2]
[423639309,1780271440000,-500.0,0.00013698,2]
[423639316,1780271440000,-500.0,0.00013698,2]
[423639317,1780271440000,-500.0,0.00013698,2]
[423639319,1780271440000,-500.0,0.00013698,2]
[423639320,1780271440000,-500.0,0.00013698,2]
[423639324,1780271440000,-500.0,0.00013698,2]
[423639321,1780271440000,-500.0,0.00013698,2]
[423639322,1780271440000,-500.0,0.00013698,2]
[423639323,1780271440000,-500.0,0.00013698,2]
[423639325,1780271440000,-500.0,0.00013698,2]
[423639327,1780271440000,-500.0,0.00013698,2]
[423639326,1780271440000,-500.0,0.00013698,2]
[423639328,1780271440000,-500.0,0.00013698,2]
[423639329,1780271440000,-500.0,0.00013698,2]
[423639331,1780271440000,-1989.08,0.00013698,2]
[423639332,1780271440000,-1989.08,0.00013698,2]
[423639333,1780271440000,-1989.08,0.00013698,2]
[423639276,1780271440000,-500.0,0.00013698,2]
[423639307,1780271440000,-521.95095535,0.00013698,2]
[423639318,1780271440000,-500.0,0.00013698,2]
[423639330,1780271440000,-1989.08,0.00013698,2]
[423639304,1780271440000,-500.0,0.00013698,2]
[423639281,1780271440000,-500.0,0.00013698,2]
[423639308,1780271440000,-500.0,0.00013698,2]
[423639282,1780271440000,-500.0,0.00013698,2]
[423639283,1780271440000,-500.0,0.00013698,2]
[423639287,1780271440000,-500.0,0.00013698,2]
[423639286,1780271440000,-500.0,0.00013698,2]
[423639291,1780271440000,-500.0,0.00013698,2]
[423639290,1780271440000,-500.0,0.00013698,2]
[423639285,1780271440000,-500.0,0.00013698,2]
[423639288,1780271440000,-500.0,0.00013698,2]
[423639289,1780271440000,-351.78292401,0.00013698,2]
[423639292,1780271440000,-500.0,0.00013698,2]
[423639284,1780271440000,-500.0,0.00013698,2]
[423639294,1780271440000,-500.0,0.00013698,2]
[423639303,1780271440000,-500.0,0.00013698,2]
[423639293,1780271440000,-500.0,0.00013698,2]
[423639302,1780271440000,-500.0,0.00013698,2]
[423639296,1780271440000,-500.0,0.00013698,2]
[423639298,1780271440000,-500.0,0.00013698,2]
[423639306,1780271440000,-500.0,0.00013698,2]
[423639299,1780271440000,-174.18899724,0.00013698,2]
[423639300,1780271440000,-500.0,0.00013698,2]
[423639301,1780271440000,-500.0,0.00013698,2]
[423639295,1780271440000,-500.0,0.00013698,2]
[423639297,1780271440000,-500.0,0.00013698,2]
[423639359,1780271441000,-500.0,0.00013698,2]
[423639366,1780271441000,-500.0,0.00013698,2]
[423639360,1780271441000,-500.0,0.00013698,2]
[423639363,1780271441000,-500.0,0.00013698,2]
[423639357,1780271441000,-500.0,0.00013698,2]
[423639361,1780271441000,-500.0,0.00013698,2]
[423639364,1780271441000,-500.0,0.00013698,2]
[423639362,1780271441000,-500.0,0.00013698,2]
[423639372,1780271441000,-500.0,0.00013698,2]
[423639367,1780271441000,-500.0,0.00013698,2]
[423639369,1780271441000,-500.0,0.00013698,2]
[423639368,1780271441000,-500.0,0.00013698,2]
[423639371,1780271441000,-500.0,0.00013698,2]
[423639370,1780271441000,-500.0,0.00013698,2]
[423639373,1780271441000,-500.0,0.00013698,2]
[423639374,1780271441000,-500.0,0.00013698,2]
[423639375,1780271441000,-500.0,0.00013698,2]
[423639358,1780271441000,-500.0,0.00013698,2]
[423639376,1780271441000,-553.36280109,0.00013698,2]
[423639365,1780271441000,-500.0,0.00013698,2]
[423639356,1780271441000,-500.0,0.00013698,2]
[423639345,1780271441000,-1989.08,0.00013698,2]
[423639354,1780271441000,-500.0,0.00013698,2]
[423639380,1780271441000,-500.0,0.00013698,2]
[423639335,1780271441000,-1989.08,0.00013698,2]
[423639337,1780271441000,-1989.08,0.00013698,2]
[423639334,1780271441000,-1989.08,0.00013698,2]
[423639336,1780271441000,-1989.08,0.00013698,2]
[423639338,1780271441000,-1989.08,0.00013698,2]
[423639340,1780271441000,-1989.08,0.00013698,2]
[423639339,1780271441000,-1989.08,0.00013698,2]
[423639343,1780271441000,-1989.08,0.00013698,2]
[423639355,1780271441000,-507.08768216,0.00013698,2]
[423639344,1780271441000,-1989.08,0.00013698,2]
[423639342,1780271441000,-1989.08,0.00013698,2]
[423639346,1780271441000,-1989.08,0.00013698,2]
[423639347,1780271441000,-1989.08,0.00013698,2]
[423639350,1780271441000,-500.0,0.00013698,2]
[423639351,1780271441000,-500.0,0.00013698,2]
[423639349,1780271441000,-500.0,0.00013698,2]
[423639348,1780271441000,-500.0,0.00013698,2]
[423639352,1780271441000,-500.0,0.00013698,2]
[423639353,1780271441000,-500.0,0.00013698,2]
[423639341,1780271441000,-1989.08,0.00013698,2]
[423639379,1780271441000,-500.0,0.00013698,2]
[423639394,1780271441000,-571.63,0.00013698,2]
[423639381,1780271441000,-500.0,0.00013698,2]
[423639406,1780271441000,-500.0,0.00013698,2]
[423639407,1780271441000,-500.0,0.00013698,2]
[423639408,1780271441000,-500.0,0.00013698,2]
[423639410,1780271441000,-500.0,0.00013698,2]
[423639411,1780271441000,-500.0,0.00013698,2]
[423639409,1780271441000,-500.0,0.00013698,2]
[423639412,1780271441000,-500.0,0.00013698,2]
[423639414,1780271441000,-500.0,0.00013698,2]
[423639377,1780271441000,-500.0,0.00013698,2]
[423639413,1780271441000,-500.0,0.00013698,2]
[423639417,1780271441000,-500.0,0.00013698,2]
[423639416,1780271441000,-500.0,0.00013698,2]
[423639419,1780271441000,-500.0,0.00013698,2]
[423639418,1780271441000,-500.0,0.00013698,2]
[423639420,1780271441000,-500.0,0.00013698,2]
[423639421,1780271441000,-500.0,0.00013698,2]
[423639423,1780271441000,-500.0,0.00013698,2]
[423639424,1780271441000,-500.0,0.00013698,2]
[423639422,1780271441000,-500.0,0.00013698,2]
[423639404,1780271441000,-500.0,0.00013698,2]
[423639405,1780271441000,-500.0,0.00013698,2]
[423639415,1780271441000,-500.0,0.00013698,2]
[423639402,1780271441000,-500.0,0.00013698,2]
[423639403,1780271441000,-500.0,0.00013698,2]
[423639382,1780271441000,-500.0,0.00013698,2]
[423639378,1780271441000,-500.0,0.00013698,2]
[423639383,1780271441000,-202.78843615,0.00013698,2]
[423639388,1780271441000,-571.63,0.00013698,2]
[423639386,1780271441000,-571.63,0.00013698,2]
[423639385,1780271441000,-571.63,0.00013698,2]
[423639387,1780271441000,-571.63,0.00013698,2]
[423639389,1780271441000,-571.63,0.00013698,2]
[423639390,1780271441000,-571.63,0.00013698,2]
[423639384,1780271441000,-571.63,0.00013698,2]
[423639392,1780271441000,-571.63,0.00013698,2]
[423639398,1780271441000,-571.63,0.00013698,2]
[423639393,1780271441000,-571.63,0.00013698,2]
[423639396,1780271441000,-571.63,0.00013698,2]
[423639397,1780271441000,-571.63,0.00013698,2]
[423639395,1780271441000,-571.63,0.00013698,2]
[423639400,1780271441000,-571.63,0.00013698,2]
[423639399,1780271441000,-571.63,0.00013698,2]
[423639391,1780271441000,-571.63,0.00013698,2]
[423639401,1780271441000,-571.63,0.00013698,2]
[423639466,1780271442000,-500.0,0.00013698,2]
[423639469,1780271442000,-500.0,0.00013698,2]
[423639465,1780271442000,-500.0,0.00013698,2]
[423639458,1780271442000,-500.0,0.00013698,2]
[423639450,1780271442000,-500.0,0.00013698,2]
[423639452,1780271442000,-500.0,0.00013698,2]
[423639453,1780271442000,-500.0,0.00013698,2]
[423639460,1780271442000,-500.0,0.00013698,2]
[423639455,1780271442000,-500.0,0.00013698,2]
[423639461,1780271442000,-500.0,0.00013698,2]
[423639475,1780271442000,-500.0,0.00013698,2]
[423639459,1780271442000,-500.0,0.00013698,2]
[423639462,1780271442000,-500.0,0.00013698,2]
[423639467,1780271442000,-500.0,0.00013698,2]
[423639464,1780271442000,-500.0,0.00013698,2]
[423639468,1780271442000,-500.0,0.00013698,2]
[423639470,1780271442000,-500.0,0.00013698,2]
[423639471,1780271442000,-500.0,0.00013698,2]
[423639472,1780271442000,-500.0,0.00013698,2]
[423639479,1780271442000,-500.0,0.00013698,2]
[423639457,1780271442000,-500.0,0.00013698,2]
[423639463,1780271442000,-500.0,0.00013698,2]
[423639456,1780271442000,-500.0,0.00013698,2]
[423639478,1780271442000,-500.0,0.00013698,2]